[Event "*** Titled Tuesday 3|2 Blitz"]
[Site "Chess.com"]
[Date "2015.02.24"]
[Round "8"]
[White "Colombiano07"]
[Black "kinetix"]
[Result "1-0"]
[WhiteElo "2016"]
[BlackElo "1530"]
[TimeControl "180+2"]
[EndTime "12:43:15 PST"]
[Termination "Colombiano07 won by checkmate"]

1. e4 {[%clk 0:03:00]} 1... Nf6 {[%clk 0:02:56.7]} 2. e5 {[%clk 0:03:00.1]} 2...
Nd5 {[%clk 0:02:57.8]} 3. d4 {[%clk 0:03:01.9]} 3... d6 {[%clk 0:02:58.9]} 4.
Nf3 {[%clk 0:03:03.6]} 4... g6 {[%clk 0:02:58.7]} 5. Bc4 {[%clk 0:03:03.4]} 5...
c6 {[%clk 0:02:58.8]} 6. h3 {[%clk 0:03:02.6]} 6... Bg7 {[%clk 0:02:58.7]} 7.
O-O {[%clk 0:03:03.9]} 7... O-O {[%clk 0:02:59.3]} 8. Bb3 {[%clk 0:03:03]} 8...
Na6 {[%clk 0:02:51.2]} 9. Bg5 {[%clk 0:03:03.3]} 9... dxe5 {[%clk 0:02:40.9]}
10. dxe5 {[%clk 0:03:03.6]} 10... Nc5 {[%clk 0:02:38.2]} 11. Qd2 {[%clk
0:02:59.7]} 11... Ne4 {[%clk 0:02:34.8]} 12. Qc1 {[%clk 0:02:46.7]} 12... Nxg5
{[%clk 0:02:27]} 13. Qxg5 {[%clk 0:02:48.6]} 13... a5 {[%clk 0:02:20.2]} 14. Rd1
{[%clk 0:02:47.4]} 14... Qc7 {[%clk 0:02:14.1]} 15. Bxd5 {[%clk 0:02:47.1]}
15... cxd5 {[%clk 0:02:14.7]} 16. Rxd5 {[%clk 0:02:49]} 16... Qxc2 {[%clk
0:02:07.3]} 17. Rd2 {[%clk 0:02:44.8]} 17... Qc1+ {[%clk 0:02:01.8]} 18. Kh2
{[%clk 0:02:45.6]} 18... Bf5 {[%clk 0:01:52.9]} 19. Re2 {[%clk 0:02:00.6]} 19...
Qf1 {[%clk 0:01:13.2]} 20. Qe3 {[%clk 0:01:45.8]} 20... Rfd8 {[%clk 0:00:55.3]}
21. Re1 {[%clk 0:01:37.5]} 21... Qb5 {[%clk 0:00:54.3]} 22. Re2 {[%clk
0:01:32.8]} 22... Rd3 {[%clk 0:00:51.8]} 23. Qf4 {[%clk 0:01:21.5]} 23... Rad8
{[%clk 0:00:31.5]} 24. Nc3 {[%clk 0:01:20.8]} 24... Qb6 {[%clk 0:00:31.6]} 25.
Nh4 {[%clk 0:01:08.3]} 25... Be6 {[%clk 0:00:31.5]} 26. Nf3 {[%clk 0:01:07.4]}
26... h6 {[%clk 0:00:24.8]} 27. Rc1 {[%clk 0:00:57.1]} 27... Qb4 {[%clk
0:00:19.7]} 28. Qxb4 {[%clk 0:00:55.4]} 28... axb4 {[%clk 0:00:20.6]} 29. Ne4
{[%clk 0:00:57.3]} 29... Bf5 {[%clk 0:00:16.3]} 30. Nc5 {[%clk 0:00:55.8]} 30...
R3d5 {[%clk 0:00:15.3]} 31. Nxb7 {[%clk 0:00:56.3]} 31... Ra8 {[%clk 0:00:16.3]}
32. b3 {[%clk 0:00:53.6]} 32... Bc8 {[%clk 0:00:15.1]} 33. Nc5 {[%clk
0:00:53.5]} 33... Ra5 {[%clk 0:00:15.9]} 34. Ne4 {[%clk 0:00:50.1]} 34... Bb7
{[%clk 0:00:16.8]} 35. Rc7 {[%clk 0:00:48.7]} 35... Ba8 {[%clk 0:00:16.3]} 36.
Rxe7 {[%clk 0:00:48.5]} 36... Rd1 {[%clk 0:00:14.4]} 37. Nf6+ {[%clk 0:00:40.3]}
37... Kf8 {[%clk 0:00:13.8]} 38. Re8# {[%clk 0:00:40.7]} 1-0

[Event "*** Titled Tuesday 3|2 Blitz"]
[Site "Chess.com"]
[Date "2015.02.24"]
[Round "8"]
[White "gmjlh"]
[Black "9ShMat2"]
[Result "0-1"]
[WhiteElo "2487"]
[BlackElo "2465"]
[TimeControl "180+2"]
[EndTime "12:43:41 PST"]
[Termination "9ShMat2 won by resignation"]

1. e4 {[%clk 0:03:00]} 1... c5 {[%clk 0:02:58.7]} 2. Nf3 {[%clk 0:03:01.3]} 2...
e6 {[%clk 0:03:00.1]} 3. d4 {[%clk 0:02:58.5]} 3... cxd4 {[%clk 0:03:02]} 4.
Nxd4 {[%clk 0:03:00.4]} 4... Bc5 {[%clk 0:03:02.5]} 5. Nb3 {[%clk 0:03:00.7]}
5... Bb6 {[%clk 0:03:03.6]} 6. Bd3 {[%clk 0:03:00.2]} 6... Ne7 {[%clk
0:03:04.2]} 7. c4 {[%clk 0:02:58.6]} 7... d6 {[%clk 0:03:05.2]} 8. O-O {[%clk
0:02:59.3]} 8... O-O {[%clk 0:03:05.6]} 9. Nc3 {[%clk 0:03:00.1]} 9... Nbc6
{[%clk 0:03:06.2]} 10. Qe2 {[%clk 0:02:58.2]} 10... f5 {[%clk 0:03:05.8]} 11.
exf5 {[%clk 0:02:54]} 11... Nxf5 {[%clk 0:03:07.7]} 12. Bxf5 {[%clk 0:02:55]}
12... Rxf5 {[%clk 0:03:08.1]} 13. Be3 {[%clk 0:02:56]} 13... Bc7 {[%clk
0:03:06.3]} 14. Rad1 {[%clk 0:02:49.1]} 14... a6 {[%clk 0:03:01.3]} 15. Ne4
{[%clk 0:02:44.8]} 15... Qe7 {[%clk 0:03:02.4]} 16. Ng3 {[%clk 0:02:42.7]} 16...
Rf7 {[%clk 0:02:59.3]} 17. Rfe1 {[%clk 0:02:05.6]} 17... b6 {[%clk 0:02:53.1]}
18. Nd4 {[%clk 0:02:01]} 18... Nxd4 {[%clk 0:02:46.2]} 19. Bxd4 {[%clk
0:02:01.8]} 19... e5 {[%clk 0:02:47.3]} 20. Be3 {[%clk 0:01:57.9]} 20... Bb7
{[%clk 0:02:46.1]} 21. Rd2 {[%clk 0:01:43.7]} 21... Raf8 {[%clk 0:02:35.7]} 22.
Red1 {[%clk 0:01:43]} 22... Qe6 {[%clk 0:02:33]} 23. b3 {[%clk 0:01:42.7]} 23...
Qg6 {[%clk 0:02:28.7]} 24. Qh5 {[%clk 0:01:40.5]} 24... Qxh5 {[%clk 0:02:23.7]}
25. Nxh5 {[%clk 0:01:41.2]} 25... b5 {[%clk 0:02:25.6]} 26. cxb5 {[%clk
0:01:28.1]} 26... axb5 {[%clk 0:02:27.5]} 27. Ng3 {[%clk 0:01:17.6]} 27... d5
{[%clk 0:02:23.6]} 28. Bc5 {[%clk 0:01:18.6]} 28... Rc8 {[%clk 0:02:22.3]} 29.
b4 {[%clk 0:01:16.5]} 29... d4 {[%clk 0:02:12.3]} 30. Ne2 {[%clk 0:01:17.4]}
30... g5 {[%clk 0:02:00.3]} 31. Nc1 {[%clk 0:01:14.1]} 31... g4 {[%clk
0:01:56.1]} 32. Re1 {[%clk 0:01:15.2]} 32... Rd7 {[%clk 0:01:51.5]} 33. Nb3
{[%clk 0:00:58.7]} 33... Bd5 {[%clk 0:01:46.9]} 34. Rd3 {[%clk 0:00:54.7]} 34...
Ra8 {[%clk 0:01:44.1]} 35. Rg3 {[%clk 0:00:53.9]} 35... h5 {[%clk 0:01:39.5]}
36. Na5 {[%clk 0:00:40.2]} 36... Kh7 {[%clk 0:01:27.3]} 37. h3 {[%clk
0:00:41.2]} 37... e4 {[%clk 0:01:22]} 38. Ra3 {[%clk 0:00:41.6]} 38... d3 {[%clk
0:01:16.7]} 39. hxg4 {[%clk 0:00:40.7]} 39... hxg4 {[%clk 0:01:18.6]} 40. f3
{[%clk 0:00:34]} 40... gxf3 {[%clk 0:01:13.7]} 41. gxf3 {[%clk 0:00:35.3]} 41...
Rg8+ {[%clk 0:01:09.3]} 42. Kf1 {[%clk 0:00:36.5]} 42... Rf7 {[%clk 0:00:53.5]}
43. Re3 {[%clk 0:00:36.1]} 43... Bf4 {[%clk 0:00:50.4]} 44. Re1 {[%clk
0:00:37.4]} 44... Rg3 {[%clk 0:00:46.6]} 45. Nb3 {[%clk 0:00:29]} 45... Rxf3+
{[%clk 0:00:44.3]} 0-1

[Event "*** Titled Tuesday 3|2 Blitz"]
[Site "Chess.com"]
[Date "2015.02.24"]
[Round "8"]
[White "jcibarra"]
[Black "exoticprincess"]
[Result "1-0"]
[WhiteElo "2536"]
[BlackElo "2796"]
[TimeControl "180+2"]
[EndTime "12:43:47 PST"]
[Termination "jcibarra won by resignation"]

1. e4 {[%clk 0:03:00]} 1... e6 {[%clk 0:02:58.8]} 2. d4 {[%clk 0:03:00.7]} 2...
d5 {[%clk 0:03:00.5]} 3. Nd2 {[%clk 0:03:02.6]} 3... Bd7 {[%clk 0:03:01.4]} 4.
Ngf3 {[%clk 0:03:00.4]} 4... dxe4 {[%clk 0:03:02.6]} 5. Nxe4 {[%clk 0:03:01.5]}
5... Bc6 {[%clk 0:03:04.3]} 6. Neg5 {[%clk 0:03:03.1]} 6... Nd7 {[%clk
0:03:00.6]} 7. Nxf7 {[%clk 0:03:03.8]} 7... Kxf7 {[%clk 0:02:58.5]} 8. Ng5+
{[%clk 0:03:05]} 8... Ke8 {[%clk 0:02:58.6]} 9. Bc4 {[%clk 0:03:05.8]} 9... Qe7
{[%clk 0:02:32.2]} 10. O-O {[%clk 0:03:00.9]} 10... e5 {[%clk 0:02:14.3]} 11.
Nf7 {[%clk 0:02:50.3]} 11... Qb4 {[%clk 0:02:10.5]} 12. Qe2 {[%clk 0:02:33.8]}
12... Nb6 {[%clk 0:02:05.6]} 13. Bb3 {[%clk 0:02:26.1]} 13... Qxd4 {[%clk
0:02:00.4]} 14. Nxh8 {[%clk 0:02:23.1]} 14... Nf6 {[%clk 0:01:58.8]} 15. Nf7
{[%clk 0:02:16]} 15... e4 {[%clk 0:01:52.7]} 16. Rd1 {[%clk 0:02:07.1]} 16...
Qb4 {[%clk 0:01:52.7]} 17. Ne5 {[%clk 0:02:00.2]} 17... Bd6 {[%clk 0:01:45.9]}
18. Nxc6 {[%clk 0:01:51.6]} 18... bxc6 {[%clk 0:01:47.5]} 19. Bg5 {[%clk
0:01:44.8]} 19... Nbd7 {[%clk 0:01:48.7]} 20. Be6 {[%clk 0:01:38.9]} 20... Qxb2
{[%clk 0:01:45.7]} 21. Bxd7+ {[%clk 0:01:38]} 21... Kxd7 {[%clk 0:01:45.7]} 22.
Bxf6 {[%clk 0:01:33.3]} 22... Qxf6 {[%clk 0:01:47.3]} 23. Qxe4 {[%clk
0:01:33.1]} 23... Rf8 {[%clk 0:01:46.5]} 24. Qe2 {[%clk 0:01:11.9]} 24... Qf5
{[%clk 0:01:42.5]} 25. Rd3 {[%clk 0:01:07.1]} 25... Re8 {[%clk 0:01:39.9]} 26.
Re3 {[%clk 0:00:57.4]} 26... Rxe3 {[%clk 0:01:40.8]} 27. Qxe3 {[%clk 0:00:54.5]}
27... Qxc2 {[%clk 0:01:39.5]} 28. Re1 {[%clk 0:00:55.1]} 28... Qg6 {[%clk
0:01:36.3]} 29. Qe4 {[%clk 0:00:44.3]} 29... Qxe4 {[%clk 0:01:31.3]} 30. Rxe4
{[%clk 0:00:44.9]} 30... c5 {[%clk 0:01:30.1]} 31. Kf1 {[%clk 0:00:45.9]} 31...
Kc6 {[%clk 0:01:25.6]} 32. Ke2 {[%clk 0:00:46.8]} 32... Kb5 {[%clk 0:01:23.5]}
33. Kd3 {[%clk 0:00:44.9]} 33... h6 {[%clk 0:01:20.8]} 34. g3 {[%clk 0:00:43.7]}
34... a6 {[%clk 0:01:14.5]} 35. a4+ {[%clk 0:00:44.3]} 35... Kc6 {[%clk
0:01:12.7]} 36. Kc4 {[%clk 0:00:45.2]} 36... Kd7 {[%clk 0:01:13.2]} 37. Rg4
{[%clk 0:00:41.4]} 37... Bf8 {[%clk 0:01:12.9]} 38. Rg6 {[%clk 0:00:40.2]} 38...
c6 {[%clk 0:01:14.2]} 39. Kd3 {[%clk 0:00:38.3]} 39... Kc7 {[%clk 0:01:15.2]}
40. Kc4 {[%clk 0:00:39.2]} 40... Kb6 {[%clk 0:01:15.8]} 41. Re6 {[%clk
0:00:39.3]} 41... g5 {[%clk 0:01:07.8]} 42. f4 {[%clk 0:00:37.4]} 42... gxf4
{[%clk 0:01:09.1]} 43. gxf4 {[%clk 0:00:39.3]} 43... Kc7 {[%clk 0:01:10.2]} 44.
f5 {[%clk 0:00:40.8]} 44... Kd7 {[%clk 0:01:11.5]} 45. h3 {[%clk 0:00:42.1]}
45... Bg7 {[%clk 0:01:12.3]} 46. Kxc5 {[%clk 0:00:42.3]} 46... Bf8+ {[%clk
0:01:13]} 47. Kc4 {[%clk 0:00:43.3]} 47... h5 {[%clk 0:01:14.7]} 48. Re4 {[%clk
0:00:39.3]} 48... Kd6 {[%clk 0:01:14.6]} 49. Rh4 {[%clk 0:00:38.6]} 49... Ke5
{[%clk 0:01:14.7]} 50. Rxh5 {[%clk 0:00:40]} 50... Kf6 {[%clk 0:01:13.2]} 51.
Rh7 {[%clk 0:00:38.4]} 51... Ba3 {[%clk 0:01:12.4]} 52. Rc7 {[%clk 0:00:38.1]}
52... Kxf5 {[%clk 0:01:12.9]} 53. Rxc6 {[%clk 0:00:39.3]} 53... a5 {[%clk
0:01:14.7]} 54. Rc5+ {[%clk 0:00:39]} 1-0

[Event "*** Titled Tuesday 3|2 Blitz"]
[Site "Chess.com"]
[Date "2015.02.24"]
[Round "8"]
[White "AnthonyWirig"]
[Black "Inopov"]
[Result "0-1"]
[WhiteElo "2506"]
[BlackElo "2467"]
[TimeControl "180+2"]
[EndTime "12:44:06 PST"]
[Termination "Inopov won by resignation"]

1. d4 {[%clk 0:03:00]} 1... d5 {[%clk 0:02:58.2]} 2. Bg5 {[%clk 0:03:00.4]} 2...
f6 {[%clk 0:02:56.8]} 3. Bh4 {[%clk 0:03:00.3]} 3... Nh6 {[%clk 0:02:57.8]} 4.
e3 {[%clk 0:02:58.9]} 4... Nf5 {[%clk 0:02:57.9]} 5. Bg3 {[%clk 0:02:58]} 5...
h5 {[%clk 0:02:55.5]} 6. Be2 {[%clk 0:02:53.2]} 6... h4 {[%clk 0:02:56.5]} 7.
Bh5+ {[%clk 0:02:54.1]} 7... Kd7 {[%clk 0:02:58]} 8. Bf4 {[%clk 0:02:46.6]} 8...
g5 {[%clk 0:02:57.7]} 9. e4 {[%clk 0:02:41.9]} 9... dxe4 {[%clk 0:02:45.2]} 10.
Bg4 {[%clk 0:02:32.7]} 10... e6 {[%clk 0:02:35.4]} 11. Bc1 {[%clk 0:02:21.3]}
11... Ke7 {[%clk 0:02:26.4]} 12. Ne2 {[%clk 0:02:22]} 12... Nh6 {[%clk
0:02:23.1]} 13. Nec3 {[%clk 0:02:17.9]} 13... Nxg4 {[%clk 0:02:15.7]} 14. Qxg4
{[%clk 0:02:19.8]} 14... Qxd4 {[%clk 0:02:10.7]} 15. Nxe4 {[%clk 0:02:07.9]}
15... Nc6 {[%clk 0:01:55.6]} 16. O-O {[%clk 0:01:40.4]} 16... h3 {[%clk
0:01:55.2]} 17. Rd1 {[%clk 0:01:38.2]} 17... Rh4 {[%clk 0:01:49.2]} 18. Rxd4
{[%clk 0:01:05.6]} 18... Rxg4 {[%clk 0:01:47.2]} 19. Rc4 {[%clk 0:01:07.2]}
19... Ne5 {[%clk 0:01:42.9]} 20. Rxc7+ {[%clk 0:00:45]} 20... Kd8 {[%clk
0:01:43.2]} 21. Rxc8+ {[%clk 0:00:39.1]} 21... Rxc8 {[%clk 0:01:43.7]} 22. Ng3
{[%clk 0:00:32.9]} 22... Rxc2 {[%clk 0:01:44.5]} 23. Be3 {[%clk 0:00:34.6]}
23... f5 {[%clk 0:01:30.4]} 24. gxh3 {[%clk 0:00:35.1]} 24... Rh4 {[%clk
0:01:25.7]} 25. Bxg5+ {[%clk 0:00:34.8]} 25... Be7 {[%clk 0:01:27]} 26. Bxh4
{[%clk 0:00:34.6]} 26... Nf3+ {[%clk 0:01:28]} 27. Kf1 {[%clk 0:00:32.8]} 27...
Rc1+ {[%clk 0:01:27]} 28. Ke2 {[%clk 0:00:31.9]} 28... Nxh4 {[%clk 0:01:22]} 29.
Nf1 {[%clk 0:00:29.4]} 29... f4 {[%clk 0:01:17.8]} 30. Nfd2 {[%clk 0:00:29.3]}
30... Bf6 {[%clk 0:01:10.9]} 31. a4 {[%clk 0:00:20.5]} 31... Nf5 {[%clk
0:01:10.5]} 32. Kf3 {[%clk 0:00:16.2]} 32... e5 {[%clk 0:01:03.6]} 33. Ke4
{[%clk 0:00:15.2]} 33... Nd6+ {[%clk 0:00:58.8]} 34. Kd5 {[%clk 0:00:15.3]}
34... Kd7 {[%clk 0:00:57.8]} 35. Ra3 {[%clk 0:00:16.5]} 35... b6 {[%clk
0:00:57.8]} 36. Rc3 {[%clk 0:00:17.4]} 36... Rd1 {[%clk 0:00:58]} 37. Rc6 {[%clk
0:00:17.2]} 37... Be7 {[%clk 0:00:57.2]} 38. Rc2 {[%clk 0:00:18.4]} 38... e4
{[%clk 0:00:57.8]} 39. Nc3 {[%clk 0:00:19.5]} 39... e3 {[%clk 0:00:57.5]} 40.
fxe3 {[%clk 0:00:17.8]} 40... fxe3 {[%clk 0:00:59.4]} 41. Nxd1 {[%clk 0:00:16]}
41... e2 {[%clk 0:01:01]} 42. Nc3 {[%clk 0:00:14.2]} 42... e1=Q {[%clk 0:01:02]}
43. Nde4 {[%clk 0:00:13.7]} 43... Nxe4 {[%clk 0:01:01.1]} 44. Nxe4 {[%clk
0:00:15.6]} 44... Qh1 {[%clk 0:00:58.4]} 45. Ke5 {[%clk 0:00:14.6]} 45... Qe1
{[%clk 0:00:53.2]} 46. Rd2+ {[%clk 0:00:15.8]} 46... Kc6 {[%clk 0:00:54.3]} 47.
Rd4 {[%clk 0:00:15.7]} 47... Bc5 {[%clk 0:00:52.7]} 48. Rd2 {[%clk 0:00:16.2]}
48... Bg1 {[%clk 0:00:51.1]} 49. b4 {[%clk 0:00:16.6]} 49... a6 {[%clk 0:00:50]}
50. b5+ {[%clk 0:00:16.2]} 50... axb5 {[%clk 0:00:50.9]} 51. axb5+ {[%clk
0:00:18.1]} 51... Kxb5 {[%clk 0:00:52.3]} 52. Re2 {[%clk 0:00:19.6]} 52... Qxe2
{[%clk 0:00:51.8]} 0-1

[Event "*** Titled Tuesday 3|2 Blitz"]
[Site "Chess.com"]
[Date "2015.02.24"]
[Round "8"]
[White "lukas_111111"]
[Black "Zlatan56"]
[Result "0-1"]
[WhiteElo "2160"]
[BlackElo "2492"]
[TimeControl "180+2"]
[EndTime "12:44:56 PST"]
[Termination "Zlatan56 won by resignation"]

1. e4 {[%clk 0:03:00]} 1... d5 {[%clk 0:02:57.2]} 2. exd5 {[%clk 0:02:59]} 2...
Qxd5 {[%clk 0:02:58.1]} 3. Nc3 {[%clk 0:03:00.5]} 3... Qa5 {[%clk 0:02:58.8]} 4.
d4 {[%clk 0:03:01.5]} 4... Nf6 {[%clk 0:02:59.3]} 5. Nf3 {[%clk 0:03:02.1]} 5...
Bf5 {[%clk 0:02:59.1]} 6. Bd2 {[%clk 0:03:01.1]} 6... e6 {[%clk 0:02:59.2]} 7.
Bc4 {[%clk 0:03:01.5]} 7... Bb4 {[%clk 0:02:56.5]} 8. a3 {[%clk 0:03:01.3]} 8...
Bxc3 {[%clk 0:02:57.2]} 9. Bxc3 {[%clk 0:03:02.4]} 9... Qb6 {[%clk 0:02:57.6]}
10. O-O {[%clk 0:03:03.2]} 10... Nc6 {[%clk 0:02:51.8]} 11. Ne5 {[%clk
0:02:56.6]} 11... O-O {[%clk 0:02:45.4]} 12. Nxc6 {[%clk 0:02:33.1]} 12... Qxc6
{[%clk 0:02:45.8]} 13. Qe2 {[%clk 0:02:34.2]} 13... Be4 {[%clk 0:02:33.5]} 14.
f3 {[%clk 0:02:29.2]} 14... Bg6 {[%clk 0:02:29.2]} 15. Bb5 {[%clk 0:02:28]}
15... Qd5 {[%clk 0:02:23.2]} 16. Bc4 {[%clk 0:02:24.1]} 16... Qd7 {[%clk
0:02:23.9]} 17. Rad1 {[%clk 0:02:23.1]} 17... Nd5 {[%clk 0:02:24.8]} 18. Be1
{[%clk 0:02:23]} 18... c6 {[%clk 0:02:19.9]} 19. Bg3 {[%clk 0:02:23.6]} 19... b5
{[%clk 0:02:20.1]} 20. Bb3 {[%clk 0:02:23.6]} 20... a5 {[%clk 0:02:20.7]} 21. a4
{[%clk 0:02:22.5]} 21... Qb7 {[%clk 0:02:16.3]} 22. Bd6 {[%clk 0:02:20.9]} 22...
Rfd8 {[%clk 0:02:15.4]} 23. Be5 {[%clk 0:02:16]} 23... bxa4 {[%clk 0:02:06.6]}
24. Bxa4 {[%clk 0:02:16.9]} 24... Qxb2 {[%clk 0:02:03]} 25. Rb1 {[%clk
0:02:12.7]} 25... Qc3 {[%clk 0:01:53.5]} 26. Rfe1 {[%clk 0:01:42.7]} 26... Rac8
{[%clk 0:01:46.3]} 27. Kh1 {[%clk 0:01:41.6]} 27... Qa3 {[%clk 0:01:45.8]} 28.
Ra1 {[%clk 0:01:41]} 28... Qe7 {[%clk 0:01:41.6]} 29. Bb3 {[%clk 0:01:41.7]}
29... Qb4 {[%clk 0:01:38.5]} 30. Ra4 {[%clk 0:01:38.8]} 30... Qb6 {[%clk
0:01:38.4]} 31. Raa1 {[%clk 0:01:35.9]} 31... Ra8 {[%clk 0:01:23.8]} 32. Qd2
{[%clk 0:01:34.4]} 32... Qb4 {[%clk 0:01:20.2]} 33. Qxb4 {[%clk 0:01:07]} 33...
axb4 {[%clk 0:01:16.9]} 34. Bxd5 {[%clk 0:00:54.4]} 34... cxd5 {[%clk 0:01:13]}
35. Rab1 {[%clk 0:00:54]} 35... Ra2 {[%clk 0:01:08]} 36. Rxb4 {[%clk 0:00:53.8]}
36... Rxc2 {[%clk 0:01:08.7]} 37. h3 {[%clk 0:00:52.3]} 37... h5 {[%clk
0:01:08.1]} 38. Rbb1 {[%clk 0:00:45.4]} 38... Bf5 {[%clk 0:01:05.7]} 39. Rbc1
{[%clk 0:00:45.8]} 39... Rdc8 {[%clk 0:01:05.3]} 40. Rxc2 {[%clk 0:00:45.8]}
40... Rxc2 {[%clk 0:01:06.8]} 41. Ra1 {[%clk 0:00:45.7]} 41... f6 {[%clk
0:01:01.3]} 42. Bf4 {[%clk 0:00:45.5]} 42... h4 {[%clk 0:01:01.3]} 43. Rd1
{[%clk 0:00:34.9]} 43... g5 {[%clk 0:01:00.4]} 44. Bd6 {[%clk 0:00:30.2]} 44...
Kf7 {[%clk 0:01:00.6]} 45. Bb4 {[%clk 0:00:30.4]} 45... Kg6 {[%clk 0:01:00.4]}
46. Rd2 {[%clk 0:00:31.2]} 46... Rc4 {[%clk 0:00:57.9]} 47. Bd6 {[%clk
0:00:29.2]} 47... Bc2 {[%clk 0:00:56.1]} 48. Kh2 {[%clk 0:00:29.5]} 48... Kf5
{[%clk 0:00:56]} 49. Bb8 {[%clk 0:00:26]} 49... Ba4 {[%clk 0:00:55.8]} 50. Bd6
{[%clk 0:00:26.5]} 50... Bc6 {[%clk 0:00:56.5]} 51. Bb8 {[%clk 0:00:23.3]} 51...
Rb4 {[%clk 0:00:46.2]} 52. Bd6 {[%clk 0:00:22.3]} 52... Rb1 {[%clk 0:00:47]} 53.
Bc7 {[%clk 0:00:19.1]} 53... Bb5 {[%clk 0:00:47.9]} 54. Bd6 {[%clk 0:00:18.2]}
54... Bc4 {[%clk 0:00:48.9]} 55. Bc7 {[%clk 0:00:18.9]} 55... e5 {[%clk
0:00:49.8]} 56. Bd6 {[%clk 0:00:17.9]} 56... e4 {[%clk 0:00:44.8]} 57. fxe4+
{[%clk 0:00:18]} 57... dxe4 {[%clk 0:00:45.1]} 58. Rf2+ {[%clk 0:00:17.9]} 58...
Ke6 {[%clk 0:00:46.1]} 59. Bc7 {[%clk 0:00:17.7]} 59... e3 {[%clk 0:00:46.1]}
60. Rf3 {[%clk 0:00:18.6]} 60... e2 {[%clk 0:00:44.9]} 0-1